bitfinex/quotes_BTCUSD_20220731
["timestamp","ask_amount","ask_price","bid_price","bid_amount"]
[1659275748857,0.00353614,23733.0,23732.0,1.17376677]
[1659275749078,0.00353614,23733.0,23732.0,1.22376677]
[1659275749782,0.00353614,23733.0,23732.0,1.16576677]
[1659275750461,0.00353614,23733.0,23732.0,1.24076677]
[1659275751832,0.00353614,23733.0,23732.0,1.16576677]
[1659275753078,0.00353614,23733.0,23732.0,1.06585156]
[1659275753272,0.00353614,23733.0,23732.0,1.19085156]
[1659275753501,0.00353614,23733.0,23732.0,2.28470994]
[1659275755821,0.00353614,23733.0,23732.0,2.20970994]
[1659275756301,0.00353614,23733.0,23732.0,2.25962515]
[1659275756535,0.00353614,23733.0,23732.0,2.48066863]
[1659275757067,0.00353614,23733.0,23732.0,1.38681025]
[1659275757286,0.00353614,23733.0,23732.0,1.19485156]
[1659275757736,0.00353614,23733.0,23732.0,1.11585156]
[1659275758407,0.00353614,23733.0,23732.0,1.10385156]
[1659275758846,0.00353614,23733.0,23732.0,1.05385156]
[1659275759071,0.00353614,23733.0,23732.0,0.75385156]
[1659275759770,0.00353614,23733.0,23732.0,0.71585156]
[1659275760461,0.00353614,23733.0,23732.0,1.05885156]
[1659275760683,0.00353614,23733.0,23732.0,0.75885156]
[1659275761797,0.00353614,23733.0,23732.0,0.71585156]
[1659275762234,0.00353614,23733.0,23732.0,1.01585156]
[1659275762919,0.00353614,23733.0,23732.0,1.10885156]
[1659275763581,0.00353614,23733.0,23732.0,1.15885156]
[1659275764040,0.00353614,23733.0,23732.0,1.11585156]
[1659275764287,0.00353614,23733.0,23732.0,1.06585156]
[1659275764526,0.00353614,23733.0,23732.0,1.15885156]
[1659275765853,0.00353614,23733.0,23732.0,1.11585156]
[1659275766526,0.00353614,23733.0,23732.0,1.16385156]
[1659275767920,0.00242932,23733.0,23732.0,1.16385156]
[1659275768367,0.00242932,23733.0,23732.0,1.11585156]
[1659275768581,0.00242932,23733.0,23732.0,1.17385156]
[1659275769829,0.00242932,23733.0,23732.0,1.11585156]
[1659275770371,0.00242932,23733.0,23732.0,1.12385156]
[1659275771212,0.00242932,23733.0,23732.0,0.77385156]
[1659275771443,0.00242932,23733.0,23732.0,1.12385156]
[1659275771905,0.00242932,23733.0,23732.0,1.06585156]
[1659275772455,0.00242932,23733.0,23732.0,1.12385156]
[1659275773155,0.00242932,23733.0,23732.0,1.17385156]
[1659275773843,0.00242932,23733.0,23732.0,1.11585156]
[1659275774357,0.00242932,23733.0,23732.0,1.18685156]
[1659275775730,0.00242932,23733.0,23732.0,1.11585156]
[1659275776439,0.00242932,23733.0,23732.0,1.18685156]
[1659275777807,0.00242932,23733.0,23732.0,1.11585156]
[1659275778260,0.00242932,23733.0,23732.0,0.71585156]
[1659275778713,0.00242932,23733.0,23732.0,0.78685156]
[1659275779624,0.00242932,23733.0,23732.0,1.08685156]
[1659275780122,0.00242932,23733.0,23732.0,0.71585156]
[1659275780340,0.00242932,23733.0,23732.0,0.83685156]
[1659275780549,0.00242932,23733.0,23732.0,1.13685156]
[1659275781674,0.00242932,23733.0,23732.0,1.01585156]
[1659275781882,0.00242932,23733.0,23732.0,1.06585156]
[1659275782566,0.00242932,23733.0,23732.0,1.13685156]
[1659275783696,0.00242932,23733.0,23732.0,1.06585156]
[1659275784133,0.00242932,23733.0,23732.0,1.01585156]
[1659275784355,0.00242932,23733.0,23732.0,1.13685156]
[1659275785476,0.00242932,23733.0,23732.0,1.08685156]
[1659275785714,0.00242932,23733.0,23732.0,1.01585156]
[1659275786405,0.00242932,23733.0,23732.0,1.08685156]
[1659275787719,0.00242932,23733.0,23732.0,0.71585156]
[1659275788170,0.00242932,23733.0,23732.0,1.06585156]
[1659275788394,0.00242932,23733.0,23732.0,1.13685156]
[1659275788906,0.00242932,23733.0,23732.0,0.78685156]
[1659275789111,0.00242932,23733.0,23732.0,0.83685156]
[1659275789324,0.00242932,23733.0,23732.0,1.13685156]
[1659275789774,0.00242932,23733.0,23732.0,1.06585156]
[1659275790244,0.00242932,23733.0,23732.0,1.11585156]
[1659275790466,0.00242932,23733.0,23732.0,1.18685156]
[1659275791102,0.00242932,23733.0,23732.0,1.13685156]
[1659275791343,0.00236037,23733.0,23732.0,1.13685156]
[1659275791756,0.00236037,23733.0,23732.0,1.06585156]
[1659275791975,0.00236037,23733.0,23732.0,1.11585156]
[1659275792195,0.00236037,23733.0,23732.0,1.06585156]
[1659275792412,0.00236037,23733.0,23732.0,1.13685156]
[1659275793823,0.00236037,23733.0,23732.0,1.06585156]
[1659275794560,0.00236037,23733.0,23732.0,1.18685156]
[1659275795755,0.00236037,23733.0,23732.0,1.11585156]
[1659275796466,0.00236037,23733.0,23732.0,1.18685156]
[1659275797826,0.00236037,23733.0,23732.0,1.11585156]
[1659275798495,0.00236037,23733.0,23732.0,1.18685156]
[1659275799663,0.00236037,23733.0,23732.0,1.13685156]
[1659275799896,0.00236037,23733.0,23732.0,1.06585156]
[1659275800576,0.00236037,23733.0,23732.0,1.34743156]
[1659275801022,0.00236037,23733.0,23732.0,1.39743156]
[1659275801764,0.00236037,23733.0,23732.0,1.32643156]
[1659275801981,0.00236037,23733.0,23732.0,1.27643156]
[1659275802201,0.00236037,23733.0,23732.0,1.64760056]
[1659275802420,0.00236037,23733.0,23732.0,1.76860056]
[1659275803832,0.00236037,23733.0,23732.0,1.69760056]
[1659275804493,0.00236037,23733.0,23732.0,1.76860056]
[1659275805845,0.00236037,23733.0,23732.0,1.69760056]
[1659275806510,0.00236037,23733.0,23732.0,1.71860056]
[1659275806761,0.00236037,23733.0,23732.0,1.41860056]
[1659275806990,0.00236037,23733.0,23732.0,1.71860056]
[1659275807429,0.00236037,23733.0,23732.0,1.76860056]
[1659275807886,0.00236037,23733.0,23732.0,1.74760056]
[1659275808596,0.00236037,23733.0,23732.0,1.40543156]
[1659275809955,0.00236037,23733.0,23732.0,1.32643156]
[1659275810539,0.00236037,23733.0,23732.0,1.39743156]
[1659275811700,0.00236037,23733.0,23732.0,1.41007504]
[1659275811996,0.00236037,23733.0,23732.0,1.33907504]
[1659275812447,0.00236037,23733.0,23732.0,1.41407504]
[1659275813848,0.00236037,23733.0,23732.0,1.33907504]
[1659275814566,0.00236037,23733.0,23732.0,1.41907504]
[1659275815272,0.00229405,23733.0,23732.0,1.41907504]
[1659275815932,0.00229405,23733.0,23732.0,1.33907504]
[1659275816641,0.00229405,23733.0,23732.0,1.41907504]
[1659275817118,0.00229405,23733.0,23732.0,1.01907504]
[1659275817281,0.00229405,23733.0,23732.0,1.00643156]
[1659275818049,0.00229405,23733.0,23732.0,0.92643156]
[1659275818578,0.00229405,23733.0,23732.0,1.40643156]
[1659275819882,0.00229405,23733.0,23732.0,1.32643156]
[1659275820095,0.00229405,23733.0,23732.0,1.22643156]
[1659275820316,0.00229405,23733.0,23732.0,0.62255356]
[1659275820550,0.00229405,23733.0,23732.0,0.69555356]
[1659275821075,0.00229405,23733.0,23732.0,0.48497356]
[1659275821584,0.00229405,23733.0,23732.0,0.07771623]
[1659275822036,0.00229405,23733.0,23732.0,0.00471623]
[1659275822455,0.00229405,23733.0,23732.0,0.08371623]
[1659275822612,0.00275774,23733.0,23732.0,0.08371623]
[1659275822813,0.00275774,23733.0,23732.0,0.079]
[1659275823029,0.30663574,23733.0,23732.0,0.079]
[1659275823686,0.30663574,23733.0,23729.0,0.00433835]
[1659275823902,0.12511456,23731.0,23729.0,0.00433835]
[1659275824138,0.11255236,23731.0,23729.0,0.04025509]
[1659275824362,0.00275774,23733.0,23729.0,0.04025509]
[1659275824574,0.00275774,23733.0,23729.0,0.11825509]
[1659275824741,0.30663574,23733.0,23729.0,0.11825509]
[1659275825002,0.11162683,23731.0,23729.0,0.11825509]
[1659275825992,0.00229405,23733.0,23729.0,0.04025509]
[1659275826203,0.00229405,23733.0,23729.0,0.34025509]
[1659275826637,0.00229405,23733.0,23729.0,0.46925509]
[1659275827069,0.00229405,23733.0,23729.0,0.41925509]
[1659275827837,0.00229405,23733.0,23729.0,0.34025509]
[1659275828311,0.00229405,23733.0,23729.0,0.33591674]
[1659275828537,0.00229405,23733.0,23729.0,0.11391674]
[1659275828726,0.00229405,23733.0,23729.0,0.41391674]
[1659275828839,0.00229405,23733.0,23729.0,0.46391674]
[1659275829563,0.00229405,23733.0,23729.0,0.41391674]
[1659275829741,0.00046369,23732.0,23729.0,0.078]
[1659275829995,0.00046369,23732.0,23729.0,0.03455595]
[1659275830193,0.00229405,23733.0,23729.0,0.03455595]
[1659275830480,0.00229405,23733.0,23729.0,0.11255595]
[1659275830805,0.00229405,23733.0,23732.0,0.78837317]
[1659275831028,0.00229405,23733.0,23732.0,1.49569126]
[1659275831244,0.00229405,23733.0,23732.0,1.79569126]
[1659275831476,0.00229405,23733.0,23732.0,1.84569126]
[1659275831699,0.00229405,23733.0,23732.0,1.89569126]
[1659275832189,0.00229405,23733.0,23732.0,1.84569126]
[1659275832484,0.00229405,23733.0,23732.0,1.92469126]
[1659275832927,0.00229405,23733.0,23732.0,1.97469126]
[1659275833846,0.00229405,23733.0,23732.0,1.84569126]
[1659275834281,0.00229405,23733.0,23732.0,1.89569126]
[1659275834390,0.00229405,23733.0,23732.0,1.97469126]
[1659275834608,0.00229405,23733.0,23732.0,1.92469126]
[1659275835840,0.00229405,23733.0,23732.0,1.97469126]
[1659275836060,0.00229405,23733.0,23732.0,1.89569126]
[1659275836561,0.00229405,23733.0,23732.0,1.97469126]
[1659275836785,0.00229405,23733.0,23732.0,1.97831081]
[1659275837827,0.00229405,23733.0,23732.0,1.84931081]
[1659275838063,0.00229405,23733.0,23732.0,1.54543281]
[1659275838259,0.00229405,23733.0,23732.0,1.84931081]
[1659275838487,0.00229405,23733.0,23732.0,1.92831081]
[1659275839382,0.00229405,23733.0,23732.0,1.62443281]
[1659275839806,0.00229405,23733.0,23732.0,1.54543281]
[1659275840144,0.00229405,23733.0,23732.0,0.79543281]
[1659275840480,0.00229405,23733.0,23732.0,1.17831081]
[1659275841345,0.00229405,23733.0,23732.0,0.87443281]
[1659275841795,0.00229405,23733.0,23732.0,1.09931081]
[1659275842223,0.00229405,23733.0,23732.0,1.14931081]
[1659275842443,0.00229405,23733.0,23732.0,1.22831081]
[1659275843139,0.00229405,23733.0,23732.0,1.17831081]
[1659275843364,0.00229405,23733.0,23732.0,0.92443281]
[1659275843612,0.00229405,23733.0,23732.0,1.17831081]
[1659275843833,0.00229405,23733.0,23732.0,1.14931081]
[1659275844570,0.00229405,23733.0,23732.0,1.22831081]
[1659275845734,0.00229405,23733.0,23732.0,1.14931081]
[1659275846694,0.00229405,23733.0,23732.0,1.22831081]
[1659275846933,0.00229405,23733.0,23732.0,1.17831081]
[1659275847146,0.00229405,23733.0,23732.0,1.22831081]
[1659275847788,0.00220008,23733.0,23732.0,1.09931081]
[1659275848157,0.00220008,23733.0,23732.0,0.79543281]
[1659275848365,0.00220008,23733.0,23732.0,1.14931081]
[1659275848760,0.00220008,23733.0,23732.0,1.22831081]
[1659275848965,0.00220008,23733.0,23732.0,1.22469126]
[1659275849751,0.00220008,23733.0,23732.0,0.92081326]
[1659275850280,0.00220008,23733.0,23732.0,1.14569126]
[1659275850930,0.00220008,23733.0,23732.0,0.84181326]
[1659275851153,0.00220008,23733.0,23732.0,0.79181326]
[1659275851379,0.00220008,23733.0,23732.0,0.87081326]
[1659275853218,0.00220008,23733.0,23732.0,0.79181326]
[1659275853844,0.00220008,23733.0,23732.0,0.87081326]
[1659275855191,0.00220008,23733.0,23732.0,0.79181326]
[1659275855407,0.00220008,23733.0,23732.0,0.87081326]
[1659275857006,0.00220008,23733.0,23732.0,0.92081326]
[1659275857426,0.00220008,23733.0,23732.0,0.82081326]
[1659275857899,0.00220008,23733.0,23732.0,0.74181326]
[1659275858545,0.00220008,23733.0,23732.0,0.52081326]
[1659275859445,0.00220008,23733.0,23732.0,0.82081326]
[1659275860042,0.00220008,23733.0,23732.0,0.74181326]
[1659275860486,0.00220008,23733.0,23732.0,0.82081326]
[1659275860985,0.00220008,23733.0,23732.0,0.079]
[1659275861923,0.00220008,23733.0,23731.0,0.41121521]
[1659275862142,0.00220008,23733.0,23731.0,0.03831521]
[1659275862588,0.07820008,23733.0,23732.0,0.021]
[1659275863914,0.00220008,23733.0,23731.0,0.32884537]
[1659275864147,0.00220008,23733.0,23731.0,0.03831521]
[1659275864585,0.07920008,23733.0,23732.0,0.033]
[1659275865957,0.00220008,23733.0,23731.0,0.03831521]
[1659275866414,0.00220008,23733.0,23732.0,0.048]
[1659275867790,0.00220008,23733.0,23731.0,0.03831521]
[1659275868535,0.00220008,23733.0,23732.0,0.3]
[1659275870575,0.00220008,23733.0,23732.0,0.348]
[1659275871615,0.00220008,23733.0,23732.0,0.648]
[1659275871828,0.00220008,23733.0,23732.0,0.6]
[1659275872032,0.00220008,23733.0,23732.0,0.3]
[1659275872605,0.00220008,23733.0,23732.0,0.348]
[1659275873042,0.00220008,23733.0,23732.0,0.648]
[1659275873484,0.00220008,23733.0,23732.0,0.348]
[1659275873710,0.00220008,23733.0,23732.0,0.3]
[1659275873941,0.00220008,23733.0,23732.0,0.6]
[1659275874172,0.00220008,23733.0,23732.0,0.3]
[1659275874646,0.00220008,23733.0,23732.0,0.369]
[1659275875405,0.00266377,23733.0,23732.0,0.069]
[1659275875626,0.00220008,23733.0,23732.0,0.069]
[1659275875838,0.00220008,23733.0,23731.0,0.07761696]
[1659275876509,0.00220008,23733.0,23731.0,0.14661696]
[1659275877076,0.00220008,23733.0,23732.0,0.03837317]
[1659275877485,0.00211524,23733.0,23732.0,0.03837317]
[1659275878354,0.00271092,23733.0,23732.0,0.03837317]
[1659275878560,0.00271092,23733.0,23732.0,0.10737317]
[1659275879902,0.00271092,23733.0,23732.0,0.03837317]
[1659275880581,0.00271092,23733.0,23732.0,0.10737317]
[1659275881371,0.00271092,23733.0,23732.0,0.069]
[1659275881610,0.00271092,23733.0,23732.0,0.279598]
[1659275881949,0.00271092,23733.0,23732.0,0.24966071]
[1659275882364,0.00271092,23733.0,23732.0,0.210598]
[1659275882582,0.00317461,23733.0,23732.0,0.279598]
[1659275882810,0.00317461,23733.0,23732.0,0.069]
[1659275883028,0.00271092,23733.0,23732.0,0.07360411]
[1659275883282,0.00271092,23733.0,23732.0,0.47351932]
[1659275883485,0.00271092,23733.0,23732.0,1.38009732]
[1659275883688,0.00271092,23733.0,23732.0,2.05123732]
[1659275883914,0.00271092,23733.0,23732.0,0.60721932]
[1659275884127,0.00271092,23733.0,23732.0,0.90721932]
[1659275884350,0.00271092,23733.0,23732.0,1.26109732]
[1659275884577,0.00271092,23733.0,23732.0,0.68621932]
[1659275884800,0.00271092,23733.0,23732.0,0.63630411]
[1659275885067,0.00271092,23733.0,23732.0,1.02076271]
[1659275885746,0.00271092,23733.0,23732.0,0.94176271]
[1659275886158,0.00271092,23733.0,23732.0,0.89176271]
[1659275886641,0.00271092,23733.0,23732.0,0.96076271]
[1659275886857,0.00271092,23733.0,23732.0,0.66076271]
[1659275888173,0.00271092,23733.0,23732.0,0.96076271]
[1659275888408,0.00271092,23733.0,23732.0,0.89176271]
[1659275888628,0.00271092,23733.0,23732.0,0.67076271]
[1659275889070,0.00271092,23733.0,23732.0,0.97076271]
[1659275889513,0.00271092,23733.0,23732.0,0.67076271]
[1659275890000,0.00271092,23733.0,23732.0,0.89176271]
[1659275890484,0.00271092,23733.0,23732.0,0.97076271]
[1659275890705,0.00271092,23733.0,23732.0,1.02076271]
[1659275891911,0.00211524,23733.0,23732.0,0.94176271]
[1659275892544,0.00211524,23733.0,23732.0,1.01076271]
[1659275893895,0.00211524,23733.0,23732.0,0.94176271]
[1659275895255,0.00211524,23733.0,23732.0,0.89176271]
[1659275896149,0.00211524,23733.0,23732.0,0.5871586]
[1659275896369,0.00211524,23733.0,23732.0,0.6661586]
[1659275896591,0.00211524,23733.0,23732.0,0.9661586]
[1659275896820,0.00211524,23733.0,23732.0,0.6661586]
[1659275897259,0.00211524,23733.0,23732.0,0.9661586]
[1659275899057,0.00204719,23733.0,23732.0,0.8871586]
[1659275899276,0.00204719,23733.0,23732.0,0.9661586]
[1659275899494,0.00204719,23733.0,23732.0,0.97081885]
[1659275899719,0.00204719,23733.0,23732.0,1.02081885]
[1659275900381,0.00204719,23733.0,23732.0,1.09981885]
[1659275900617,0.00204719,23733.0,23732.0,0.97081885]
[1659275900858,0.00204719,23733.0,23732.0,0.67081885]
[1659275901083,0.00204719,23733.0,23732.0,0.6317]
[1659275901800,0.00204719,23733.0,23732.0,0.5527]
[1659275902488,0.00204719,23733.0,23732.0,0.6317]
[1659275903410,0.00204719,23733.0,23732.0,0.63308467]
[1659275903638,0.00204719,23733.0,23732.0,0.6317]
[1659275903858,0.00204719,23733.0,23732.0,0.5527]
[1659275904531,0.00204719,23733.0,23732.0,0.63308467]
[1659275904752,0.00226176,23733.0,23732.0,0.6661586]
[1659275904982,0.00251088,23733.0,23732.0,0.079]
[1659275905225,8.479e-05,23729.0,23727.0,0.01598281]
[1659275905715,0.51888416,23728.0,23727.0,0.01598281]
[1659275905945,1.12322585,23728.0,23727.0,0.01598281]
[1659275906406,1.12331064,23728.0,23719.0,0.41108855]
[1659275906634,0.71113533,23727.0,23719.0,0.41108855]
[1659275906873,1.01113533,23726.0,23719.0,0.81834588]
[1659275907107,0.303878,23725.0,23720.0,0.40725733]
[1659275907342,0.70725733,23727.0,23720.0,0.69789765]
[1659275907343,0.30007101,23727.0,23720.0,0.69789765]
[1659275907570,7.101e-05,23727.0,23721.0,0.40725733]
[1659275908018,0.30007101,23727.0,23721.0,0.40725733]
[1659275908245,0.303878,23726.0,23721.0,0.40725733]
[1659275908714,0.04568231,23727.0,23721.0,0.40725733]
[1659275908944,0.34568231,23727.0,23721.0,0.40725733]
[1659275909170,0.303878,23726.0,23721.0,0.40725733]
[1659275909451,0.04568231,23727.0,23721.0,0.40725733]
[1659275909452,0.34956031,23727.0,23721.0,0.40725733]
[1659275909909,0.30656031,23727.0,23721.0,0.40725733]
[1659275910577,0.64956031,23727.0,23721.0,0.40725733]
[1659275910857,0.303878,23726.0,23720.0,0.40725733]
[1659275911081,0.303878,23725.0,23720.0,0.40725733]
[1659275911306,0.303878,23724.0,23719.0,0.80235733]
[1659275911523,0.70725733,23726.0,23719.0,0.80235733]
[1659275911746,0.303878,23725.0,23719.0,0.80235733]
[1659275911979,0.303878,23724.0,23719.0,0.80235733]
[1659275912204,0.70994305,23726.0,23719.0,0.80235733]
[1659275912440,0.382878,23725.0,23719.0,0.80235733]
[1659275912660,0.303878,23724.0,23720.0,0.70725733]
[1659275912898,0.079,23725.0,23721.0,0.44207184]
[1659275913151,0.079,23725.0,23721.0,0.49207184]
[1659275913428,0.079,23725.0,23722.0,0.40725733]
[1659275913659,0.00046369,23724.0,23722.0,0.40725733]
[1659275913895,0.079,23725.0,23722.0,0.40725733]
[1659275914352,0.00266008,23724.0,23722.0,0.40725733]
[1659275914593,0.04566008,23724.0,23722.0,0.40725733]
[1659275915525,0.04566008,23724.0,23723.0,0.3]
[1659275915766,0.04566008,23724.0,23723.0,0.8456305]
[1659275915993,0.04566008,23724.0,23723.0,1.14942371]
[1659275916228,0.04566008,23724.0,23723.0,1.23101371]
[1659275916462,0.00266008,23724.0,23723.0,1.25901371]
[1659275916696,0.00266008,23724.0,23723.0,1.74562371]
[1659275916967,0.00266008,23724.0,23723.0,1.3918305]
[1659275917374,0.00266008,23724.0,23723.0,1.05345733]
[1659275917568,0.00266008,23724.0,23723.0,1.40345733]
[1659275917912,0.00266008,23724.0,23723.0,1.32545733]
[1659275918124,0.00266008,23724.0,23723.0,1.32534816]
[1659275918553,0.06266008,23724.0,23723.0,1.32534816]
[1659275919396,0.06266008,23724.0,23723.0,1.62922616]
[1659275919602,0.06266008,23724.0,23723.0,1.9697453]
[1659275919855,0.06266008,23724.0,23723.0,1.32534816]
[1659275920280,0.00266008,23724.0,23723.0,1.37534816]
[1659275920492,0.00366008,23724.0,23723.0,1.36034816]
[1659275921191,0.00366008,23724.0,23723.0,1.41034816]
[1659275921780,0.00366008,23724.0,23723.0,1.37534816]
[1659275921781,0.00266008,23724.0,23723.0,1.37534816]
[1659275922383,0.001,23724.0,23723.0,1.71779412]
[1659275923582,0.001,23724.0,23723.0,1.41391612]
[1659275923819,0.30176644,23733.0,23723.0,1.37891612]
[1659275924035,0.71113533,23732.0,23724.0,0.70725733]
[1659275924254,0.603878,23731.0,23725.0,0.40725733]
[1659275924465,0.303878,23730.0,23725.0,0.40725733]
[1659275924679,0.303878,23729.0,23725.0,0.40725733]
[1659275924889,0.3,23731.0,23726.0,0.0344586]
[1659275925075,0.303878,23730.0,23726.0,0.0344586]
[1659275925300,0.303878,23729.0,23726.0,0.0344586]
[1659275925507,0.303878,23728.0,23726.0,0.0344586]
[1659275925760,0.3,23731.0,23726.0,0.0344586]
[1659275925955,0.303878,23730.0,23726.0,0.0344586]
[1659275926213,0.303878,23729.0,23726.0,0.0344586]
[1659275926435,0.303878,23728.0,23726.0,0.0344586]
[1659275926648,0.373,23731.0,23726.0,0.0344586]
[1659275926908,0.303878,23730.0,23726.0,0.0344586]
[1659275927085,0.303878,23729.0,23726.0,0.0344586]
[1659275927293,0.303878,23728.0,23726.0,0.0344586]
[1659275927490,0.11162683,23727.0,23726.0,0.03612844]
[1659275927670,0.373,23731.0,23726.0,0.03612844]
[1659275927892,0.303878,23729.0,23726.0,0.03612844]
[1659275928045,0.303878,23728.0,23726.0,0.03612844]
[1659275928245,0.303878,23730.0,23726.0,0.03612844]
[1659275928458,0.357878,23729.0,23726.0,0.03612844]
[1659275928687,0.303878,23728.0,23726.0,0.03612844]
[1659275928918,0.054,23729.0,23726.0,0.03612844]
[1659275929339,0.303878,23728.0,23726.0,0.03612844]
[1659275929540,0.054,23729.0,23726.0,0.03612844]
[1659275929716,0.3,23731.0,23726.0,0.03612844]
[1659275929942,0.303878,23730.0,23726.0,0.03586244]
[1659275930171,0.30412712,23729.0,23726.0,0.03586244]
[1659275930394,0.00024912,23729.0,23726.0,0.03586244]
[1659275930605,0.373,23731.0,23726.0,0.03586244]
[1659275930820,0.303878,23730.0,23726.0,0.03586244]
[1659275931038,0.303878,23729.0,23726.0,0.03586244]
[1659275931282,0.073,23731.0,23726.0,0.03586244]
[1659275931485,0.303878,23730.0,23726.0,0.03586244]
[1659275931908,0.30412712,23729.0,23726.0,0.03586244]
[1659275932143,0.00024912,23729.0,23726.0,0.03586244]
[1659275932639,0.00024912,23729.0,23725.0,0.46082117]
[1659275932849,0.01162683,23729.0,23725.0,0.46082117]
[1659275933067,0.40725733,23732.0,23725.0,0.46082117]
[1659275933281,0.077,23730.0,23725.0,0.46082117]
[1659275934353,0.077,23730.0,23726.0,0.3]
[1659275934570,0.303878,23729.0,23727.0,0.03419259]
[1659275934782,0.303878,23728.0,23727.0,0.03419259]
[1659275935259,0.01162683,23729.0,23727.0,0.03419259]
[1659275935490,0.049,23730.0,23727.0,0.03419259]
[1659275935736,0.303878,23729.0,23726.0,0.00356247]
[1659275935978,0.303878,23728.0,23727.0,0.03419259]
[1659275936225,0.04972969,23730.0,23727.0,0.04042145]
[1659275936465,0.375878,23729.0,23727.0,0.04042145]
[1659275936684,0.11162683,23728.0,23726.0,0.00356247]
[1659275936903,0.375878,23729.0,23726.0,0.03775506]
[1659275937132,0.303878,23728.0,23726.0,0.03775506]
[1659275937342,0.072,23729.0,23726.0,0.03775506]
[1659275937573,0.303878,23728.0,23726.0,0.00356247]
[1659275937801,0.072,23729.0,23726.0,0.00356247]
[1659275938019,0.303878,23728.0,23727.0,0.03419259]
[1659275938450,0.08362683,23729.0,23727.0,0.03419259]
[1659275938451,0.09162683,23729.0,23727.0,0.03419259]
[1659275938667,0.0921074,23729.0,23726.0,0.00356247]
[1659275938902,0.09162683,23729.0,23726.0,0.4108198]
[1659275939109,0.09162683,23729.0,23726.0,0.00356247]
[1659275939329,0.303878,23728.0,23726.0,0.00356247]
[1659275939549,0.09162683,23729.0,23726.0,0.00356247]
[1659275939772,0.303878,23728.0,23726.0,0.00356247]
[1659275940015,0.01162683,23729.0,23727.0,0.00355972]
[1659275940253,0.303878,23728.0,23727.0,0.03775231]
[1659275940470,0.08,23728.0,23727.0,0.03775231]
[1659275940691,0.08,23728.0,23727.0,0.00355972]
[1659275941825,0.00024912,23728.0,23727.0,0.00381188]
[1659275942038,0.30176644,23733.0,23727.0,0.00355972]
[1659275942251,0.71113533,23732.0,23727.0,0.00355972]
[1659275942464,0.07,23728.0,23727.0,0.00355972]
[1659275942909,0.07,23728.0,23727.0,0.00381188]
[1659275943346,0.07,23728.0,23727.0,0.00355972]
[1659275944060,0.30176644,23733.0,23727.0,0.00355972]
[1659275944274,0.71113533,23732.0,23727.0,0.00355972]
[1659275944489,0.06,23728.0,23727.0,0.00355972]
[1659275945808,0.40725733,23732.0,23727.0,0.00355972]
[1659275946032,0.303878,23731.0,23727.0,0.00355972]
[1659275946261,0.40725733,23732.0,23727.0,0.00355972]
[1659275946479,0.303878,23731.0,23727.0,0.00355972]
[1659275946935,0.47325733,23732.0,23728.0,0.00504319]
[1659275947169,0.303878,23731.0,23728.0,0.00504319]
[1659275947387,0.303878,23730.0,23729.0,0.03419259]
[1659275947644,0.066,23732.0,23729.0,0.03419259]
[1659275947862,0.30176644,23733.0,23729.0,0.03419259]
[1659275947863,0.303878,23731.0,23729.0,0.03419259]
[1659275948093,0.303878,23730.0,23729.0,0.03419259]
[1659275948306,0.30176644,23733.0,23729.0,0.03419259]
[1659275948502,0.064,23731.0,23727.0,0.30355972]
[1659275948728,0.367878,23731.0,23728.0,0.00504319]
[1659275949230,0.303878,23730.0,23728.0,0.00504319]
[1659275949424,0.064,23731.0,23729.0,0.03419259]
[1659275949649,0.303878,23730.0,23729.0,0.03419259]
[1659275949891,0.064,23731.0,23729.0,0.03419259]
[1659275950102,0.303878,23730.0,23729.0,0.03419259]
[1659275950327,0.30378828,23730.0,23729.0,0.00355697]
[1659275950582,0.075,23731.0,23729.0,0.00355697]
[1659275950811,0.303894,23730.0,23729.0,0.00355697]
[1659275951483,0.075,23731.0,23729.0,0.00355697]
[1659275951720,0.303894,23730.0,23729.0,0.00355697]
[1659275952673,0.366894,23730.0,23729.0,0.00355697]
[1659275953131,0.366894,23730.0,23729.0,0.03774956]
[1659275953364,0.366894,23730.0,23729.0,0.00355697]
[1659275953803,0.303894,23730.0,23729.0,0.00355697]
[1659275954048,0.303894,23730.0,23727.0,0.29860016]
[1659275954279,0.70902377,23733.0,23727.0,0.29860016]
[1659275954502,0.063,23730.0,23726.0,0.845021]
[1659275954732,0.063,23730.0,23726.0,1.25227833]
[1659275954951,0.063,23730.0,23729.0,0.0035556]
[1659275955181,0.366894,23730.0,23729.0,0.0035556]
[1659275955709,0.366894,23730.0,23726.0,0.845021]
[1659275955925,0.00529231,23731.0,23727.0,0.3]
[1659275956185,0.30437457,23730.0,23726.0,0.845021]
[1659275956405,0.00048057,23730.0,23726.0,0.5844]
[1659275956635,0.06348057,23730.0,23727.0,0.03419259]
[1659275956850,0.06348057,23730.0,23726.0,0.5844]
[1659275957526,0.36737457,23730.0,23726.0,0.5844]
[1659275957754,0.30437457,23730.0,23726.0,0.5844]
[1659275957991,0.11162683,23727.0,23722.0,0.3863]
[1659275958249,0.11162683,23727.0,23721.0,0.61122628]
[1659275958494,0.81888416,23727.0,23721.0,0.61122628]
[1659275958747,0.303894,23726.0,23721.0,0.00012628]
[1659275958974,0.51888416,23727.0,23720.0,0.0316]
[1659275959217,0.11162683,23727.0,23722.0,0.40725733]
[1659275959920,0.11162683,23727.0,23722.0,0.45725733]
[1659275960384,0.11162683,23727.0,23723.0,0.3]
[1659275960612,0.19062683,23727.0,23723.0,0.3]
[1659275960831,0.079,23727.0,23724.0,0.0356304]
[1659275961056,0.30437457,23726.0,23724.0,0.0356304]
[1659275961289,0.079,23727.0,23724.0,0.0356304]
[1659275961523,0.303894,23726.0,23724.0,0.0356304]
[1659275961753,0.079,23727.0,23722.0,0.40725733]
[1659275962024,0.3,23729.0,23722.0,0.40725733]
[1659275962183,0.303894,23728.0,23723.0,0.3]
[1659275962412,0.344894,23727.0,23723.0,0.35]
[1659275962614,0.041,23727.0,23723.0,0.35]
[1659275963120,0.041,23727.0,23724.0,0.03426448]
[1659275963381,0.041,23727.0,23724.0,0.03414825]
[1659275963596,0.05,23726.0,23724.0,0.03414825]
[1659275963818,0.40725733,23729.0,23724.0,0.03414825]
[1659275964045,0.303894,23728.0,23724.0,0.03414825]
[1659275964278,0.40725733,23729.0,23724.0,0.03414825]
[1659275964518,0.46525733,23729.0,23724.0,0.03414825]
[1659275964672,0.303894,23728.0,23724.0,0.03414825]
[1659275964821,0.46525733,23729.0,23724.0,0.03414825]
[1659275965029,0.303894,23728.0,23724.0,0.03414825]
[1659275965251,0.46525733,23729.0,23724.0,0.03414825]
[1659275965454,0.303894,23728.0,23724.0,0.03414825]
[1659275965661,0.30978311,23727.0,23724.0,0.03414825]
[1659275965902,0.00588911,23727.0,23724.0,0.03414825]
[1659275966136,0.00588911,23727.0,23722.0,0.98425733]
[1659275966340,0.07288911,23727.0,23722.0,0.98425733]
[1659275967256,0.067,23727.0,23722.0,0.98425733]
[1659275967699,0.3,23732.0,23723.0,0.96780254]